fUST/lending_fUST_20250818
["ID","MTS","AMOUNT","RATE_DAILY","PERIOD"]
[380069397,1755528646294,-1475.26843289,0.00020927,2]
[380069398,1755528646304,-1000.0,0.00020961,2]
[380069399,1755528646314,-1000.0,0.00020961,2]
[380069400,1755528646324,-553.11607041,0.00020973,2]
[380069401,1755528646334,-500.0,0.00020973,2]
[380069402,1755528646344,-500.0,0.00020973,2]
[380069403,1755528646354,-500.0,0.00020973,2]
[380069404,1755528646364,-227.20005765,0.00020973,2]
[380069405,1755528646373,-500.0,0.00020973,2]
[380069406,1755528646383,-500.0,0.00020973,2]
[380069407,1755528646392,-504.89955754,0.00020973,2]
[380069408,1755528646402,-211.74076198,0.00020973,2]
[380069409,1755528646414,-500.0,0.00020973,2]
[380069410,1755528646431,-500.0,0.00020973,2]
[380069411,1755528646450,-500.0,0.00020973,2]
[380069412,1755528646463,-500.0,0.00020973,2]
[380069413,1755528646474,-500.0,0.00020973,2]
[380069414,1755528646483,-500.0,0.00020973,2]
[380069415,1755528646493,-500.0,0.00020973,2]
[380069416,1755528646502,-151.0,0.00020985,2]
[380069417,1755528646512,-151.0,0.00020985,2]
[380069418,1755528646522,-152.26294,0.0002099,2]
[380069419,1755528646531,-151.0,0.0002099,2]
[380069420,1755528646543,-151.0,0.0002099,2]
[380069421,1755528646552,-151.854492,0.0002099,2]
[380069422,1755528646562,-151.0,0.0002099,2]
[380069423,1755528646571,-151.0,0.0002099,2]
[380069424,1755528646580,-151.0,0.0002099,2]
[380069425,1755528646590,-158.0,0.00021,3]
[380069426,1755528646600,-164322.87,0.00021,2]
[380069427,1755528646609,-151.0,0.00021,2]
[380069428,1755528646618,-333.086648,0.00021,2]
[380069429,1755528646628,-333.086648,0.00021,2]
[380069430,1755528646639,-353.961423,0.00021,2]
[380069431,1755528646649,-353.961423,0.00021,2]
[380069432,1755528646658,-151.0,0.00021,2]
[380069433,1755528646668,-1680.0,0.00021,2]
[380069434,1755528646677,-151.0,0.00021,2]
[380069435,1755528646686,-1976.2,0.00021018,2]
[380069436,1755528646696,-2172.38,0.00021018,2]
[380069437,1755528646705,-510.86,0.00021018,2]
[380069438,1755528646714,-465.49929012,0.00021026,2]
[380069439,1755528646723,-480.0,0.00021026,2]
[380069440,1755528646733,-515.20493184,0.00021026,2]
[380069441,1755528646742,-480.0,0.00021026,2]
[380069442,1755528646752,-480.0,0.00021026,2]
[380069443,1755528646761,-214.22978404,0.00021026,2]
[380069444,1755528646770,-480.0,0.00021026,2]
[380069445,1755528646780,-460.0,0.00021026,2]
[380069446,1755528646790,-480.0,0.00021026,2]
[380069447,1755528646800,-524.76,0.00021026,2]
[380069448,1755528646809,-151.0,0.00021026,2]
[380069449,1755528646818,-253.51995032,0.00021026,2]
[380069450,1755528646827,-151.0,0.00021026,2]
[380069451,1755528646836,-480.0,0.00021026,2]
[380069452,1755528646844,-485.74997117,0.00021026,2]
[380069453,1755528646854,-490.54028864,0.00021026,2]
[380069454,1755528646862,-480.0,0.00021026,2]
[380069455,1755528646871,-480.0,0.00021026,2]
[380069456,1755528646880,-480.0,0.00021026,2]
[380069457,1755528646889,-484.13084461,0.00021026,2]
[380069458,1755528646899,-300.0,0.00021026,2]
[380069459,1755528646908,-482.41986892,0.00021026,2]
[380069460,1755528646917,-480.0,0.00021026,2]
[380069461,1755528646926,-480.0,0.00021026,2]
[380069462,1755528646935,-480.0,0.00021026,2]
[380069463,1755528646944,-151.0,0.00021026,2]
[380069464,1755528646954,-184.340972,0.00021026,2]
[380069465,1755528646962,-184.340972,0.00021026,2]
[380069466,1755528646971,-225.938146,0.00021026,2]
[380069467,1755528646980,-151.0,0.00021026,2]
[380069468,1755528646989,-480.0,0.00021026,2]
[380069469,1755528646998,-184.405295,0.00021026,2]
[380069470,1755528647008,-184.405295,0.00021026,2]
[380069471,1755528647018,-480.0,0.00021026,2]
[380069472,1755528647027,-480.0,0.00021026,2]
[380069473,1755528647037,-480.0,0.00021026,2]
[380069474,1755528647046,-480.0,0.00021026,2]
[380069475,1755528647055,-480.0,0.00021026,2]
[380069476,1755528647065,-480.0,0.00021026,2]
[380069477,1755528647074,-480.0,0.00021026,2]
[380069478,1755528647083,-480.0,0.00021026,2]
[380069479,1755528647092,-200.169607,0.00021026,2]
[380069480,1755528647101,-151.0,0.00021026,2]
[380069481,1755528647110,-483.73060781,0.00021026,2]
[380069482,1755528647119,-492.65479457,0.00021026,2]
[380069483,1755528647128,-486.3501687,0.00021026,2]
[380069484,1755528647137,-480.0,0.00021026,2]
[380069485,1755528647146,-480.0,0.00021026,2]
[380069486,1755528647155,-525.95376,0.00021026,2]
[380069487,1755528647165,-525.95376,0.00021026,2]
[380069488,1755528647174,-1063.62,0.00021026,2]
[380069489,1755528647184,-480.0,0.00021026,2]
[380069490,1755528647194,-1020.7,0.00021026,2]
[380069491,1755528647203,-151.0,0.00021026,2]
[380069492,1755528647214,-480.0,0.00021026,2]
[380069493,1755528647223,-841.26,0.00021026,2]
[380069494,1755528647232,-480.0,0.00021027,2]
[380069495,1755528647241,-480.0,0.00021027,2]
[380069496,1755528647251,-480.0,0.00021027,2]
[380069497,1755528647260,-480.0,0.00021027,2]
[380069498,1755528647269,-480.0,0.00021027,2]
[380069499,1755528647278,-480.0,0.00021027,2]
[380069500,1755528647289,-480.0,0.00021027,2]
[380069501,1755528647301,-1264.23,0.00021027,2]
[380069502,1755528647310,-480.0,0.00021027,2]
[380069503,1755528647319,-480.0,0.00021027,2]
[380069504,1755528647328,-480.0,0.00021027,2]
[380069505,1755528647338,-480.0,0.00021027,2]
[380069506,1755528647347,-209.54776766,0.00021027,2]
[380069507,1755528647356,-480.0,0.00021027,2]
[380069508,1755528647365,-480.0,0.00021027,2]
[380069509,1755528647375,-480.0,0.00021027,2]
[380069510,1755528647384,-484.32773461,0.00021027,2]
[380069511,1755528647393,-480.0,0.00021027,2]
[380069512,1755528647402,-151.0,0.00021027,2]
[380069513,1755528647412,-480.0,0.00021027,2]
[380069514,1755528647421,-151.0,0.00021027,2]
[380069515,1755528647432,-480.0,0.00021027,2]
[380069516,1755528647441,-480.0,0.00021027,2]
[380069517,1755528647451,-480.0,0.00021027,2]
[380069518,1755528647460,-151.0,0.00021027,2]
[380069519,1755528647470,-222.066546,0.00021027,2]
[380069520,1755528647480,-480.0,0.00021027,2]
[380069521,1755528647490,-460.0,0.00021027,2]
[380069522,1755528647500,-460.0,0.00021027,2]
[380069523,1755528647511,-460.60353803,0.00021027,2]
[380069524,1755528647520,-462.1223733,0.00021027,2]
[380069525,1755528647530,-382.30894942,0.00021027,2]
[380069526,1755528647541,-464.31793976,0.00021027,2]
[380069527,1755528647550,-465.68881957,0.00021027,2]
[380069528,1755528647560,-480.97066547,0.00021027,2]
[380069529,1755528647569,-464.41304279,0.00021027,2]
[380069530,1755528647579,-480.0,0.00021027,2]
[380069531,1755528647589,-151.0,0.00021027,2]
[380069532,1755528647598,-158.207649,0.00021027,2]
[380069533,1755528647607,-151.0,0.00021027,2]
[380069534,1755528647617,-480.0,0.00021027,2]
[380069535,1755528647626,-242.764035,0.00021027,2]
[380069536,1755528647635,-151.0,0.00021027,2]
[380069537,1755528647644,-486.61242278,0.00021027,2]
[380069538,1755528647653,-500.0,0.00021027,2]
[380069539,1755528647662,-182.77662,0.00021027,2]
[380069540,1755528647672,-480.0,0.00021027,2]
[380069541,1755528647681,-480.0,0.00021027,2]
[380069542,1755528647691,-203.54904498,0.00021027,2]
[380069543,1755528647700,-151.0,0.00021027,2]
[380069544,1755528647710,-151.0,0.00021027,2]
[380069545,1755528647720,-151.26558543,0.00021027,2]
[380069546,1755528647729,-278.20634664,0.00021027,2]
[380069547,1755528647739,-221.949009,0.00021027,2]
[380069548,1755528647748,-184.340972,0.00021027,2]
[380069549,1755528647757,-480.0,0.00021027,2]
[380069550,1755528647766,-151.31239949,0.00021027,2]
[380069551,1755528647776,-184.340972,0.00021027,2]
[380069552,1755528647785,-151.0,0.00021027,2]
[380069553,1755528647795,-184.405295,0.00021027,2]
[380069554,1755528647806,-184.405295,0.00021027,2]
[380069555,1755528647815,-152.080669,0.00021027,2]
[380069556,1755528647825,-152.080669,0.00021027,2]
[380069557,1755528647835,-152.080669,0.00021027,2]
[380069558,1755528647847,-152.080669,0.00021027,2]
[380069559,1755528647860,-500.0,0.00021027,2]
[380069560,1755528647869,-500.0,0.00021027,2]
[380069561,1755528647880,-151.0,0.00021027,2]
[380069562,1755528647891,-200.169607,0.00021027,2]
[380069563,1755528647900,-151.0,0.00021027,2]
[380069564,1755528647909,-500.0,0.00021027,2]
[380069565,1755528647919,-151.0,0.00021027,2]
[380069566,1755528647928,-151.0,0.00021027,2]
[380069567,1755528647937,-480.81841643,0.00021027,2]
[380069568,1755528647946,-151.0,0.00021027,2]
[380069569,1755528647955,-151.0,0.00021027,2]
[380069570,1755528647964,-480.4008612,0.00021027,2]
[380069571,1755528647973,-151.0,0.00021027,2]
[380069572,1755528647983,-500.0,0.00021027,2]
[380069573,1755528647992,-480.0,0.00021027,2]
[380069574,1755528648001,-202.08835659,0.00021027,2]
[380069575,1755528648010,-480.74813414,0.00021027,2]
[380069576,1755528648019,-481.1590474,0.00021027,2]
[380069577,1755528648028,-480.0,0.00021027,2]
[380069578,1755528648039,-483.00890394,0.00021027,2]
[380069579,1755528648048,-525.95376,0.00021027,2]
[380069580,1755528648058,-525.95375,0.00021027,2]
[380069581,1755528648169,-480.45861325,0.00021027,2]
[380069582,1755528648179,-465.31250866,0.00021027,2]
[380069583,1755528648188,-480.0,0.00021027,2]
[380069584,1755528648198,-480.86465295,0.00021027,2]
[380069585,1755528648207,-480.0,0.00021027,2]
[380069586,1755528648216,-480.0,0.00021027,2]
[380069587,1755528648226,-198.705198,0.00021027,2]
[380069588,1755528648236,-480.0,0.00021027,2]
[380069589,1755528648245,-151.0,0.00021027,2]
[380069590,1755528648254,-151.0,0.00021027,2]
[380069591,1755528648263,-480.54429768,0.00021027,2]
[380069592,1755528648272,-151.0,0.00021027,2]
[380069593,1755528648281,-151.0,0.00021027,2]
[380069594,1755528648292,-480.0,0.00021027,2]
[380069595,1755528648301,-151.0,0.00021027,2]
[380069596,1755528648311,-200.04869843,0.00021027,7]
[380069597,1755528648320,-482.45041059,0.00021027,2]
[380069598,1755528648330,-333.086648,0.00021027,2]
[380069599,1755528648339,-333.086648,0.00021027,2]
[380069600,1755528648349,-280.92141758,0.00021027,2]
[380069601,1755528648358,-480.46351349,0.00021027,2]
[380069602,1755528648367,-481.75551875,0.00021027,2]
[380069603,1755528648377,-353.961423,0.00021027,2]
[380069604,1755528648386,-353.961423,0.00021027,2]
[380069605,1755528648395,-151.0,0.00021027,2]
[380069606,1755528648404,-151.37947602,0.00021027,2]
[380069607,1755528648414,-151.54215487,0.00021027,2]
[380069608,1755528648424,-151.0,0.00021027,2]
[380069609,1755528648434,-500.0,0.00021027,2]
[380069610,1755528648444,-500.0,0.00021027,2]
[380069611,1755528648453,-151.0,0.00021027,2]
[380069612,1755528648462,-151.13703646,0.00021027,2]
[380069613,1755528648472,-151.0,0.00021027,2]
[380069614,1755528648482,-500.0,0.00021027,2]
[380069615,1755528648491,-500.0,0.00021027,2]
[380069616,1755528648500,-151.0,0.00021027,2]
[380069617,1755528648511,-154.308845,0.00021027,2]
[380069618,1755528648520,-151.96446113,0.00021027,2]
[380069619,1755528648529,-243.10542472,0.00021027,2]
[380069620,1755528648539,-151.0,0.00021027,2]
[380069621,1755528648548,-151.0,0.00021027,2]
[380069622,1755528648558,-500.0,0.00021027,2]
[380069623,1755528648568,-500.0,0.00021027,2]
[380069624,1755528648577,-152.186698,0.00021028,2]
[380069625,1755528648586,-151.0,0.00021028,2]
[380069626,1755528648595,-151.0,0.00021028,2]
[380069627,1755528648604,-184.340972,0.00021028,2]
[380069628,1755528648613,-184.340972,0.00021028,2]
[380069629,1755528648623,-1000.0,0.00021028,2]
[380069630,1755528648632,-1000.0,0.00021028,2]
[380069631,1755528648642,-1000.0,0.00021028,2]
[380069632,1755528648651,-1000.0,0.00021028,2]
[380069633,1755528648660,-1000.0,0.00021028,2]
[380069634,1755528648670,-480.0,0.00021029,2]
[380069635,1755528648679,-480.0,0.00021029,2]
[380069636,1755528648689,-480.0,0.00021029,2]
[380069637,1755528648699,-288.232223,0.00021029,2]
[380069638,1755528648708,-184.405295,0.00021029,2]
[380069639,1755528648718,-184.405295,0.00021029,2]
[380069640,1755528648727,-3000.0,0.0002103,2]
[380069641,1755528648737,-150.0,0.00021038,2]
[380069642,1755528648746,-3000.0,0.0002104,2]
[380069643,1755528648756,-3000.0,0.0002105,2]
[380069644,1755528648765,-200.169607,0.00021054,2]
[380069645,1755528648775,-200.169607,0.00021054,2]
[380069646,1755528648786,-151.0,0.00021054,2]
[380069647,1755528648796,-1000.0,0.00021054,2]
[380069648,1755528648806,-500.0,0.00021054,2]
[380069649,1755528648815,-1000.0,0.00021054,2]
[380069650,1755528648825,-1000.0,0.00021054,2]
[380069651,1755528648834,-3000.0,0.0002106,2]
[380069652,1755528648844,-152.193111,0.0002106,2]
[380069653,1755528648853,-3000.0,0.0002107,2]
[380069654,1755528648862,-152.080669,0.0002107,2]
[380069655,1755528648872,-152.080669,0.0002107,2]
[380069656,1755528648881,-151.0,0.0002107,2]
[380069657,1755528648890,-333.086648,0.0002107,2]
[380069658,1755528648900,-333.086648,0.0002107,2]
[380069659,1755528648910,-353.961423,0.0002107,2]
[380069660,1755528648919,-353.961423,0.0002107,2]
[380069661,1755528648928,-507.71684695,0.00021073,2]
[380069662,1755528648937,-500.0,0.00021073,2]
[380069663,1755528648946,-161.89658568,0.00021073,2]
[380069664,1755528648955,-213.10496783,0.00021073,2]
[380069665,1755528648964,-500.0,0.00021073,2]
[380069666,1755528648974,-224.61322912,0.00021073,2]
[380069667,1755528648984,-151.0,0.00021073,2]
[380069668,1755528648993,-151.0,0.00021073,2]
[380069669,1755528649003,-1013.33049499,0.00021079,2]
[380069670,1755528649013,-3000.0,0.0002108,2]
[380069671,1755528649022,-184.340972,0.0002108,2]
[380069672,1755528649032,-184.340972,0.0002108,2]
[380069673,1755528649042,-1285.66,0.00021086,3]
[380069674,1755528649051,-642.82,0.00021086,3]
[380069675,1755528649060,-321.42,0.00021086,3]
[380069676,1755528649070,-3000.0,0.0002109,2]
[380069677,1755528649080,-582.16134903,0.00021095,2]
[380069678,1755528649090,-480.0,0.00021095,2]
[380069679,1755528649100,-480.0,0.00021095,2]
[380069680,1755528649109,-834.8,0.00021095,2]
[380069681,1755528649119,-569.41,0.00021095,2]
[380069682,1755528649129,-480.0,0.00021095,2]
[380069683,1755528649138,-512.84,0.00021095,2]
[380069684,1755528649148,-184.405295,0.00021095,2]
[380069685,1755528649158,-184.405295,0.00021095,2]
[380069686,1755528649167,-152.080669,0.00021095,2]
[380069687,1755528649177,-152.080662,0.00021095,2]
[380069688,1755528649187,-480.0,0.00021095,2]
[380069689,1755528649196,-543.73312981,0.00021095,2]
[380069690,1755528649206,-203.01964582,0.00021095,2]
[380069691,1755528649216,-975.69,0.00021095,2]
[380069692,1755528649225,-573.24,0.00021095,2]
[380069693,1755528649235,-200.169607,0.00021095,2]
[380069694,1755528649245,-200.169598,0.00021095,2]
[380069695,1755528649255,-151.0,0.00021095,2]
[380069696,1755528649264,-782.91,0.00021095,2]
[380069697,1755528649274,-2237.86,0.00021095,2]
[380069698,1755528649283,-1024.53,0.00021095,2]
[380069699,1755528649293,-480.0,0.00021095,2]
[380069700,1755528649302,-480.0,0.00021095,2]
[380069701,1755528649312,-1399.8,0.00021095,2]
[380069702,1755528649322,-543.27,0.00021095,2]
[380069703,1755528649331,-480.0,0.00021095,2]
[380069704,1755528649340,-1085.81,0.00021095,2]
[380069705,1755528649350,-521.89,0.00021095,2]
[380069706,1755528649359,-1824.89,0.00021095,2]
[380069707,1755528649369,-2840.04,0.00021095,2]
[380069708,1755528649378,-649.96,0.00021095,2]
[380069709,1755528649387,-613.65,0.00021095,2]
[380069710,1755528649397,-1232.94,0.00021095,2]
[380069711,1755528649407,-480.0,0.00021095,2]
[380069712,1755528649417,-480.0,0.00021095,2]
[380069713,1755528649431,-480.0,0.00021095,2]
[380069714,1755528649440,-3631.01,0.00021095,2]
[380069715,1755528649450,-524.23,0.00021095,2]
[380069716,1755528649459,-1058.65,0.00021095,2]
[380069717,1755528649470,-578.26,0.00021095,2]
[380069718,1755528649479,-480.0,0.00021095,2]
[380069719,1755528649488,-480.0,0.00021095,2]
[380069720,1755528649498,-480.0,0.00021095,2]
[380069721,1755528649508,-480.0,0.00021095,2]
[380069722,1755528649517,-552.82,0.00021095,2]
[380069723,1755528649526,-480.0,0.00021095,2]
[380069724,1755528649535,-1495.35,0.00021095,2]
[380069725,1755528649547,-480.0,0.00021095,2]
[380069726,1755528649556,-480.0,0.00021095,2]
[380069727,1755528649565,-480.0,0.00021095,2]
[380069728,1755528649575,-555.45,0.00021095,2]
[380069729,1755528649584,-775.36,0.00021095,2]
[380069730,1755528649594,-480.0,0.00021095,2]
[380069731,1755528649603,-483.04,0.00021095,2]
[380069732,1755528649612,-480.0,0.00021095,2]
[380069733,1755528649621,-480.0,0.00021095,2]
[380069734,1755528649631,-480.0,0.00021095,2]
[380069735,1755528649640,-583.38,0.00021095,2]
[380069736,1755528649649,-869.04,0.00021095,2]
[380069737,1755528649659,-3000.0,0.000211,2]
[380069738,1755528649669,-151.0,0.000211,4]
[380069739,1755528649679,-160.0,0.00021102,2]
[380069740,1755528649689,-3000.0,0.0002111,2]
[380069741,1755528649699,-1399.33604383,0.00021119,2]
[380069742,1755528649709,-3000.0,0.0002112,2]
[380069743,1755528649718,-151.0,0.0002112,2]
[380069744,1755528649728,-333.086648,0.0002112,2]
[380069745,1755528649738,-333.086648,0.0002112,2]
[380069746,1755528649748,-353.961423,0.0002112,2]
[380069747,1755528649758,-353.961423,0.0002112,2]
[380069748,1755528649767,-3000.0,0.0002113,2]
[380069749,1755528649776,-168.337808,0.0002113,2]
[380069750,1755528649785,-184.340972,0.0002113,2]
[380069751,1755528649795,-184.340962,0.0002113,2]
[380069752,1755528649805,-151.0,0.0002113,2]
[380069753,1755528649813,-3000.0,0.0002114,2]
[380069754,1755528649822,-9321.70671512,0.0002114,3]
[380069755,1755528649832,-184.405295,0.0002114,2]
[380069756,1755528649841,-184.405291,0.0002114,2]
[380069757,1755528649851,-528.58062739,0.0002114,3]
[380069758,1755528649860,-160.0,0.0002114,3]
[380069759,1755528649869,-417.15472785,0.0002114,3]
[380069760,1755528649879,-215.75323784,0.0002114,3]
[380069761,1755528649888,-375.82681177,0.0002114,3]
[380069762,1755528649898,-3614.34440619,0.00021147,2]
[380069763,1755528649908,-4127.644517,0.0002115,2]
[380069764,1755528649918,-731.84,0.00021235,3]
[380069765,1755528649927,-2571.3,0.0002125,3]
[380069766,1755528649936,-5142.62,0.0002126,3]
[380069767,1755528649946,-431.9034523,0.00021288,2]
[380069768,1755528649955,-580.787823,0.00021288,2]
[380069769,1755528649965,-1976.2,0.00021292,2]
[380069770,1755528649974,-2172.38,0.00021292,2]
[380069771,1755528649984,-510.86,0.00021292,2]
[380069772,1755528649993,-200.0,0.00021299,2]
[380069773,1755528650003,-352.85184165,0.000213,2]
[380069774,1755528650013,-480.0,0.000213,2]
[380069775,1755528650023,-480.0,0.000213,2]
[380069776,1755528650032,-480.0,0.000213,2]
[380069777,1755528650042,-524.76,0.000213,2]
[380069778,1755528650051,-480.0,0.000213,2]
[380069779,1755528650061,-480.0,0.000213,2]
[380069780,1755528650071,-489.6065327,0.000213,2]
[380069781,1755528650079,-480.0,0.000213,2]
[380069782,1755528650087,-480.0,0.000213,2]
[380069783,1755528650096,-612.17449588,0.000213,2]
[380069784,1755528650105,-151.0,0.000213,4]
[380069785,1755528650114,-486.1856359,0.000213,2]
[380069786,1755528650123,-480.0,0.000213,2]
[380069787,1755528650132,-480.0,0.000213,2]
[380069788,1755528650142,-480.0,0.000213,2]
[380069789,1755528650151,-480.0,0.000213,2]
[380069790,1755528650161,-480.0,0.000213,2]
[380069791,1755528650170,-480.0,0.000213,2]
[380069792,1755528650179,-480.0,0.000213,2]
[380069793,1755528650188,-486.99865741,0.000213,2]
[380069794,1755528650197,-480.0,0.000213,2]
[380069795,1755528650206,-1063.62,0.000213,2]
[380069796,1755528650215,-480.0,0.000213,2]
[380069797,1755528650225,-1020.7,0.000213,2]
[380069798,1755528650234,-480.0,0.000213,2]
[380069799,1755528650243,-841.26,0.000213,2]
[380069800,1755528650252,-198.63598254,0.00021301,2]
[380069801,1755528650260,-168.69561604,0.00021301,2]
[380069802,1755528650269,-500.0,0.00021301,2]
[380069803,1755528650278,-500.0,0.00021301,2]
[380069804,1755528650287,-151.0,0.00021301,2]
[380069805,1755528650296,-500.0,0.00021301,2]
[380069806,1755528650305,-151.0,0.00021301,2]
[380069807,1755528650315,-198.0,0.00021301,2]
[380069808,1755528650324,-151.0,0.00021301,2]
[380069809,1755528650333,-151.0,0.00021301,2]
[380069810,1755528650342,-500.0,0.00021301,2]
[380069811,1755528650351,-151.0,0.00021301,2]
[380069812,1755528650361,-500.0,0.00021301,2]
[380069813,1755528650370,-500.0,0.00021301,2]
[380069814,1755528650379,-151.0,0.00021301,2]
[380069815,1755528650388,-151.0,0.00021301,2]
[380069816,1755528650397,-500.0,0.00021301,2]
[380069817,1755528650407,-500.0,0.00021301,2]
[380069818,1755528650416,-186.7507385,0.00021301,2]
[380069819,1755528650429,-151.0,0.00021301,2]
[380069820,1755528650438,-500.0,0.00021301,2]
[380069821,1755528650539,-500.0,0.00021301,2]
[380069822,1755528650549,-480.0,0.00021301,2]
[380069823,1755528650559,-480.0,0.00021301,2]
[380069824,1755528650568,-480.0,0.00021301,2]
[380069825,1755528650578,-1264.23,0.00021301,2]
[380069826,1755528650587,-480.0,0.00021301,2]
[380069827,1755528650597,-480.0,0.00021301,2]
[380069828,1755528650606,-480.0,0.00021301,2]
[380069829,1755528650616,-480.0,0.00021301,2]
[380069830,1755528650625,-523.92964513,0.00021301,2]
[380069831,1755528650635,-480.0,0.00021301,2]
[380069832,1755528650644,-480.0,0.00021301,2]
[380069833,1755528650653,-480.0,0.00021301,2]
[380069834,1755528650662,-480.0,0.00021301,2]
[380069835,1755528650671,-480.0,0.00021301,2]
[380069836,1755528650680,-490.38620051,0.00021301,2]
[380069837,1755528650689,-405.41925666,0.00021301,2]
[380069838,1755528650698,-420.0,0.00021301,2]
[380069839,1755528650708,-488.40846653,0.00021301,2]
[380069840,1755528650717,-405.17369016,0.00021301,2]
[380069841,1755528650726,-500.0,0.00021301,2]
[380069842,1755528650735,-625.8984158,0.00021301,2]
[380069843,1755528650744,-480.0,0.00021301,2]
[380069844,1755528650754,-233.82416505,0.00021301,2]
[380069845,1755528650763,-480.0,0.00021301,2]
[380069846,1755528650772,-483.9721258,0.00021301,2]
[380069847,1755528650782,-480.0,0.00021301,2]
[380069848,1755528650792,-480.0,0.00021301,2]
[380069849,1755528650801,-452.79803107,0.00021301,2]
[380069850,1755528650810,-151.0,0.00021301,2]
[380069851,1755528650819,-333.086648,0.00021301,2]
[380069852,1755528650829,-333.086648,0.00021301,2]
[380069853,1755528650839,-353.961423,0.00021301,2]
[380069854,1755528650848,-353.961423,0.00021301,2]
[380069855,1755528650860,-151.0,0.00021301,2]
[380069856,1755528650879,-485.71191195,0.00021303,2]
[380069857,1755528650890,-234.97271951,0.00021303,2]
[380069858,1755528650899,-474.82028875,0.00021303,2]
[380069859,1755528650909,-500.0,0.00021364,2]
[380069860,1755528650918,-480.0,0.00021369,2]
[380069861,1755528650928,-480.0,0.00021369,2]
[380069862,1755528650937,-834.8,0.00021369,2]
[380069863,1755528650946,-569.41,0.00021369,2]
[380069864,1755528650955,-480.0,0.00021369,2]
[380069865,1755528650964,-512.84,0.00021369,2]
[380069866,1755528650973,-480.0,0.00021369,2]
[380069867,1755528650982,-975.69,0.00021369,2]
[380069868,1755528650991,-573.24,0.00021369,2]
[380069869,1755528651001,-782.91,0.00021369,2]
[380069870,1755528651010,-2237.86,0.00021369,2]
[380069871,1755528651020,-1024.53,0.00021369,2]
[380069872,1755528651029,-480.0,0.00021369,2]
[380069873,1755528651044,-480.0,0.00021369,2]
[380069874,1755528651054,-1399.8,0.00021369,2]
[380069875,1755528651063,-543.27,0.00021369,2]
[380069876,1755528651071,-480.0,0.00021369,2]
[380069877,1755528651080,-1085.81,0.00021369,2]
[380069878,1755528651089,-521.89,0.00021369,2]
[380069879,1755528651098,-1824.89,0.00021369,2]
[380069880,1755528651107,-2840.04,0.00021369,2]
[380069881,1755528651116,-649.96,0.00021369,2]
[380069882,1755528651125,-613.65,0.00021369,2]
[380069883,1755528651134,-1232.94,0.00021369,2]
[380069884,1755528651143,-480.0,0.00021369,2]
[380069885,1755528651152,-480.0,0.00021369,2]
[380069886,1755528651160,-480.0,0.00021369,2]
[380069887,1755528651169,-3631.01,0.00021369,2]
[380069888,1755528651179,-524.23,0.00021369,2]
[380069889,1755528651187,-1058.65,0.00021369,2]
[380069890,1755528651196,-578.26,0.00021369,2]
[380069891,1755528651204,-172.563506,0.00021369,2]
[380069892,1755528651213,-480.0,0.00021369,2]
[380069893,1755528651223,-557.72957526,0.00021369,2]
[380069894,1755528651233,-480.0,0.00021369,2]
[380069895,1755528651241,-480.0,0.00021369,2]
[380069896,1755528651251,-552.82,0.00021369,2]